fUST/lending_fUST_20250119
["ID","MTS","AMOUNT","RATE_DAILY","PERIOD"]
[349503353,1737228646356,-500.0,0.00022054,3]
[349503354,1737228646365,-500.0,0.00022054,3]
[349503355,1737228646374,-500.0,0.00022054,3]
[349503356,1737228646383,-500.0,0.00022054,3]
[349503357,1737228646394,-500.0,0.00022054,3]
[349503359,1737228646404,-502.0,0.00022054,3]
[349503360,1737228646414,-500.0,0.00022054,3]
[349503362,1737228646424,-500.0,0.00022054,3]
[349503364,1737228646436,-500.0,0.00022054,3]
[349503366,1737228646445,-500.0,0.00022054,3]
[349503368,1737228646455,-500.0,0.00022054,3]
[349503370,1737228646464,-500.0,0.00022054,3]
[349503372,1737228646474,-500.0,0.00022054,3]
[349503374,1737228646485,-500.0,0.00022054,3]
[349503376,1737228646494,-500.0,0.00022054,3]
[349503378,1737228646503,-399.65017529,0.00022054,3]
[349503380,1737228646512,-500.0,0.00022054,3]
[349503382,1737228646521,-500.0,0.00022054,3]
[349503384,1737228646531,-500.0,0.00022054,3]
[349503386,1737228646540,-505.79973648,0.00022054,3]
[349503388,1737228646549,-500.95856053,0.00022054,3]
[349503390,1737228646558,-500.0,0.00022054,3]
[349503392,1737228646567,-111.06081187,0.00022054,3]
[349503394,1737228646580,-388.93918813,0.00022054,3]
[349503396,1737228646590,-66.50681207,0.00022054,3]
[349503398,1737228646602,-433.49318793,0.00022054,3]
[349503401,1737228646612,-500.0,0.00022054,3]
[349503403,1737228646622,-500.0,0.00022054,3]
[349503405,1737228646632,-500.0,0.00022054,3]
[349503407,1737228646642,-500.0,0.00022054,3]
[349503409,1737228646652,-1158.23,0.00022054,3]
[349503411,1737228646662,-500.0,0.00022054,3]
[349503413,1737228646671,-500.0,0.00022054,3]
[349503415,1737228646680,-500.0,0.00022054,3]
[349503417,1737228646689,-500.0,0.00022054,3]
[349503419,1737228646699,-500.0,0.00022054,3]
[349503421,1737228646708,-500.0,0.00022054,3]
[349503423,1737228646718,-500.0,0.00022054,3]
[349503425,1737228646726,-500.0,0.00022054,3]
[349503427,1737228646735,-500.0,0.00022054,3]
[349503429,1737228646744,-500.0,0.00022054,3]
[349503431,1737228646754,-500.0,0.00022054,3]
[349503433,1737228646763,-500.0,0.00022054,3]
[349503435,1737228646774,-500.0,0.00022054,3]
[349503436,1737228646783,-500.0,0.00022054,3]
[349503438,1737228646792,-500.0,0.00022054,3]
[349503440,1737228646802,-500.0,0.00022054,3]
[349503443,1737228646811,-500.0,0.00022054,3]
[349503444,1737228646820,-500.0,0.00022054,3]
[349503446,1737228646829,-500.0,0.00022054,3]
[349503448,1737228646838,-500.0,0.00022054,3]
[349503450,1737228646848,-500.0,0.00022054,3]
[349503452,1737228646858,-500.0,0.00022054,3]
[349503454,1737228646867,-500.0,0.00022054,3]
[349503456,1737228646878,-2759.63,0.00022054,3]
[349503458,1737228646887,-151.0,0.00022054,7]
[349503460,1737228646896,-164.768868,0.00022054,7]
[349503462,1737228646905,-500.0,0.00022054,3]
[349503464,1737228646915,-500.0,0.00022054,3]
[349503466,1737228646924,-500.0,0.00022054,3]
[349503469,1737228646934,-500.0,0.00022054,3]
[349503470,1737228646944,-500.0,0.00022054,3]
[349503472,1737228646953,-151.0,0.00022054,7]
[349503474,1737228646962,-500.0,0.00022054,3]
[349503476,1737228646972,-500.0,0.00022054,3]
[349503478,1737228646981,-151.0,0.00022054,7]
[349503480,1737228646990,-500.0,0.00022054,3]
[349503492,1737228647086,-500.0,0.00022054,3]
[349503494,1737228647096,-151.0,0.00022054,7]
[349503496,1737228647106,-500.0,0.00022054,3]
[349503498,1737228647116,-500.0,0.00022054,3]
[349503500,1737228647126,-500.0,0.00022054,3]
[349503502,1737228647136,-521.32,0.00022191,3]
[349503504,1737228647145,-500.0,0.00022191,3]
[349503506,1737228647155,-500.0,0.00022191,3]
[349503508,1737228647164,-500.0,0.00022191,3]
[349503510,1737228647174,-360.12,0.00022191,3]
[349503512,1737228647184,-500.0,0.00022191,3]
[349503514,1737228647193,-1158.23,0.00022191,3]
[349503516,1737228647203,-500.0,0.00022191,3]
[349503518,1737228647212,-500.0,0.00022191,3]
[349503520,1737228647222,-500.0,0.00022191,3]
[349503523,1737228647232,-500.0,0.00022191,3]
[349503525,1737228647242,-2759.63,0.00022191,3]
[349503527,1737228647251,-500.0,0.00022191,3]
[349503529,1737228647262,-499.94,0.00022191,3]
[349503531,1737228647271,-500.0,0.00022191,3]
[349503533,1737228647281,-521.32,0.00022328,3]
[349503535,1737228647291,-500.0,0.00022328,3]
[349503537,1737228647300,-500.0,0.00022328,3]
[349503539,1737228647310,-500.0,0.00022328,3]
[349503541,1737228647320,-1158.23,0.00022328,3]
[349503543,1737228647329,-500.0,0.00022328,3]
[349503545,1737228647339,-500.0,0.00022328,3]
[349503547,1737228647350,-500.0,0.00022328,3]
[349503549,1737228647363,-500.0,0.00022328,3]
[349503551,1737228647373,-2759.63,0.00022328,3]
[349503553,1737228647383,-500.0,0.00022328,3]
[349503555,1737228647394,-434.26,0.00022328,3]
[349503557,1737228647404,-521.32,0.00022465,3]
[349503559,1737228647415,-528.2977871,0.00022465,3]
[349503561,1737228647424,-245.08,0.00022465,3]
[349503564,1737228647436,-500.0,0.00022465,3]
[349503566,1737228647446,-1158.23,0.00022465,3]
[349503568,1737228647456,-500.0,0.00022465,3]
[349503570,1737228647465,-571.78,0.00022465,3]
[349503572,1737228647476,-500.0,0.00022465,3]
[349503574,1737228647486,-500.0,0.00022465,3]
[349503576,1737228647496,-2759.63,0.00022465,3]
[349503578,1737228647506,-500.0,0.00022465,3]
[349503580,1737228647517,-712.25288264,0.00022521,2]
[349503582,1737228647526,-521.32,0.00022602,3]
[349503584,1737228647536,-500.0,0.00022602,3]
[349503586,1737228647546,-1158.23,0.00022602,3]
[349503588,1737228647556,-500.0,0.00022602,3]
[349503590,1737228647566,-500.0,0.00022602,3]
[349503592,1737228647576,-500.0,0.00022602,3]
[349503594,1737228647585,-2759.63,0.00022602,3]
[349503596,1737228647595,-500.0,0.00022602,3]
[349503598,1737228647605,-564.41090486,0.00022689,2]
[349503600,1737228647614,-521.32,0.00022739,3]
[349503602,1737228647625,-481.24,0.00022739,3]
[349503604,1737228647635,-1158.23,0.00022739,3]
[349503605,1737228647644,-500.0,0.00022739,3]
[349503607,1737228647654,-500.0,0.00022739,3]
[349503609,1737228647664,-500.0,0.00022739,3]
[349503612,1737228647674,-2759.63,0.00022739,3]
[349503613,1737228647684,-151.0,0.00022739,7]
[349503616,1737228647694,-151.0,0.00022739,7]
[349503617,1737228647704,-500.0,0.00022739,3]
[349503619,1737228647713,-377.018,0.0002281,2]
[349503621,1737228647723,-521.32,0.00022876,3]
[349503624,1737228647732,-1158.23,0.00022876,3]
[349503626,1737228647742,-500.0,0.00022876,3]
[349503627,1737228647750,-500.0,0.00022876,3]
[349503630,1737228647760,-393.26,0.00022876,3]
[349503632,1737228647770,-2759.63,0.00022876,3]
[349503634,1737228647779,-500.0,0.00022876,3]
[349503636,1737228647788,-203.72851163,0.000229,3]
[349503638,1737228647798,-203.72851149,0.00022995,3]
[349503640,1737228647807,-521.32,0.00023013,3]
[349503642,1737228647817,-1158.23,0.00023013,3]
[349503644,1737228647826,-500.0,0.00023013,3]
[349503646,1737228647836,-2759.63,0.00023013,3]
[349503648,1737228647845,-500.0,0.00023013,3]
[349503650,1737228647856,-150.0,0.00023014,2]
[349503652,1737228647866,-4666.60544911,0.00023033,2]
[349503654,1737228647876,-203.72851149,0.0002309,3]
[349503656,1737228647885,-521.32,0.0002315,3]
[349503658,1737228647894,-1158.23,0.0002315,3]
[349503660,1737228647905,-500.0,0.0002315,3]
[349503662,1737228647915,-2759.63,0.0002315,3]
[349503664,1737228647924,-151.0,0.0002315,7]
[349503666,1737228647934,-500.0,0.0002315,3]
[349503668,1737228647943,-151.0,0.0002315,7]
[349503670,1737228647952,-203.72851149,0.00023186,3]
[349503672,1737228647962,-150.0,0.00023269,2]
[349503674,1737228647972,-156.342,0.00023269,2]
[349503676,1737228647982,-2079.0,0.00023269,2]
[349503678,1737228647991,-203.72851149,0.00023281,3]
[349503680,1737228648001,-521.32,0.00023287,3]
[349503682,1737228648011,-1158.23,0.00023287,3]
[349503684,1737228648021,-500.0,0.00023287,3]
[349503686,1737228648031,-2759.63,0.00023287,3]
[349503688,1737228648040,-500.0,0.00023287,3]
[349503690,1737228648050,-151.0,0.000233,8]
[349503692,1737228648060,-203.72851149,0.00023376,3]
[349503694,1737228648070,-521.32,0.00023424,3]
[349503696,1737228648080,-1158.23,0.00023424,3]
[349503698,1737228648090,-500.0,0.00023424,3]
[349503700,1737228648099,-2759.63,0.00023424,3]
[349503702,1737228648109,-500.0,0.00023424,3]
[349503705,1737228648119,-203.72851149,0.00023471,3]
[349503707,1737228648129,-500.0,0.00023473,2]
[349503709,1737228648139,-500.0,0.00023473,2]
[349503711,1737228648149,-500.0,0.00023473,2]
[349503712,1737228648158,-500.0,0.00023473,2]
[349503714,1737228648168,-1238.41805741,0.000235,5]
[349503715,1737228648177,-287.33594217,0.000235,5]
[349503716,1737228648187,-75665.53058432,0.000235,2]
[349503717,1737228648249,-631.66000005,0.000235,2]
[349503718,1737228648261,-6276.0,0.000235,2]
[349503721,1737228810729,160.0,0.00024135,120]
[349503722,1737228871542,160.0,0.00023945,120]
[349503723,1737228930762,160.0,0.00024122,120]
[349503724,1737229051271,160.0,0.00023712,120]
[349503725,1737229110767,160.0,0.00024228,120]
[349503727,1737229170779,160.0,0.00024182,120]
[349503728,1737229270699,160.895525,0.00013973,2]
[349503729,1737229290887,160.0,0.00024053,120]
[349503730,1737229350776,160.0,0.00022856,120]
[349503731,1737229411304,160.0,0.00023149,120]
[349503732,1737229471361,160.0,0.00024146,120]
[349503733,1737229530867,160.0,0.00023477,120]
[349503734,1737229590753,160.0,0.00024082,120]
[349503735,1737229643149,-276.6047141,0.0002072,2]
[349503736,1737229643171,-276.159899,0.00020822,2]
[349503737,1737229643193,-250.0,0.00020906,2]
[349503738,1737229643216,-100.15216242,0.0002102,2]
[349503739,1737229650956,160.0,0.00024589,120]
[349503740,1737229710755,160.0,0.00023627,120]
[349503742,1737229754109,-61.97794688,0.0002102,2]
[349503743,1737229754129,-291.706,0.00021113,2]
[349503744,1737229770749,160.0,0.00023681,120]
[349503747,1737229830936,160.0,0.00024216,120]
[349503772,1737229832262,-427.27532415,0.00021907,2]
[349503774,1737229832272,-300.0,0.00021916,2]
[349503776,1737229832281,-155.51,0.00021917,2]
[349503778,1737229832290,-500.0,0.00021917,3]
[349503780,1737229832300,-500.0,0.00021917,3]
[349503782,1737229832309,-500.0,0.00021917,3]
[349503784,1737229832318,-297.98130536,0.00021917,3]
[349503786,1737229832328,-500.0,0.00021917,3]
[349503788,1737229832337,-502.62323616,0.00021917,3]
[349503790,1737229832348,-500.0,0.00021917,3]
[349503792,1737229832357,-500.0,0.00021917,3]
[349503794,1737229832367,-500.0,0.00021917,3]
[349503796,1737229832376,-500.0,0.00021917,3]
[349503798,1737229832385,-500.0,0.00021917,3]
[349503800,1737229832394,-500.0,0.00021917,3]
[349503802,1737229832404,-500.0,0.00021917,3]
[349503804,1737229832413,-500.0,0.00021917,3]
[349503806,1737229832423,-502.57867064,0.00021917,3]
[349503808,1737229832432,-232.0143209,0.00021917,2]
[349503810,1737229832442,-500.0,0.00021917,3]
[349503812,1737229832451,-500.0,0.00021917,3]
[349503814,1737229832460,-500.0,0.00021917,3]
[349503816,1737229832470,-500.0,0.00021917,3]
[349503818,1737229832479,-500.0,0.00021917,3]
[349503820,1737229832489,-500.0,0.00021917,3]
[349503822,1737229832499,-500.0,0.00021917,3]
[349503824,1737229832508,-501.33310908,0.00021917,3]
[349503826,1737229832518,-500.0,0.00021917,3]
[349503828,1737229832528,-501.09982786,0.00021917,3]
[349503830,1737229832537,-500.0,0.00021917,3]
[349503832,1737229832546,-502.34792068,0.00021917,3]
[349503834,1737229832556,-502.36238528,0.00021917,3]
[349503836,1737229832565,-500.70049244,0.00021917,3]
[349503838,1737229832575,-500.0,0.00021917,3]
[349503840,1737229832585,-502.78514933,0.00021917,3]
[349503842,1737229832595,-165.79779088,0.00021917,3]
[349503844,1737229832604,-500.0,0.00021917,3]
[349503846,1737229832613,-511.54379546,0.00021917,3]
[349503848,1737229832623,-505.64032576,0.00021917,3]
[349503850,1737229832632,-500.0,0.00021917,3]
[349503852,1737229832641,-500.0,0.00021917,3]
[349503853,1737229832652,-500.0,0.00021917,3]
[349503854,1737229832662,-500.47155461,0.00021917,3]
[349503855,1737229832670,-500.87416683,0.00021917,3]
[349503856,1737229832679,-501.48284902,0.00021917,3]
[349503857,1737229832688,-501.82747046,0.00021917,3]
[349503858,1737229832698,-500.90886292,0.00021917,3]
[349503859,1737229832706,-500.0,0.00021917,3]
[349503860,1737229832715,-501.18074855,0.00021917,3]
[349503861,1737229832724,-501.64859723,0.00021917,3]
[349503862,1737229832733,-739.98,0.00021917,3]
[349503863,1737229832742,-502.58456079,0.00021917,2]
[349503864,1737229832751,-500.0,0.00021917,3]
[349503874,1737229832891,-500.0,0.00021917,3]
[349503876,1737229832902,-501.58209413,0.00021917,3]
[349503878,1737229832912,-502.47237675,0.00021917,3]
[349503880,1737229832922,-500.0,0.00021917,3]
[349503882,1737229832932,-186.76,0.00021917,3]
[349503884,1737229832942,-232.60075595,0.00021917,3]
[349503887,1737229832955,-268.88410201,0.00021917,3]
[349503888,1737229832965,-502.66037096,0.00021917,3]
[349503890,1737229832975,-501.01500302,0.00021917,3]
[349503892,1737229832983,-500.54161511,0.00021917,3]
[349503894,1737229832993,-501.61791838,0.00021917,3]
[349503896,1737229833003,-538.45915102,0.00021917,3]
[349503898,1737229833012,-501.91369215,0.00021917,3]
[349503900,1737229833021,-1983.3,0.00021917,3]
[349503902,1737229833030,-500.0,0.00021917,3]
[349503904,1737229833040,-502.69009372,0.00021917,3]
[349503906,1737229833050,-501.75020128,0.00021917,3]
[349503908,1737229833059,-500.0,0.00021917,3]
[349503910,1737229833068,-500.0,0.00021917,3]
[349503912,1737229833078,-500.0,0.00021917,3]
[349503914,1737229833087,-500.0,0.00021917,3]
[349503916,1737229833098,-133.83348691,0.00021917,3]
[349503919,1737229833111,-366.16651309,0.00021917,3]
[349503921,1737229833121,-500.0,0.00021917,3]
[349503923,1737229833131,-500.0,0.00021917,3]
[349503925,1737229833140,-500.0,0.00021917,3]
[349503926,1737229833149,-500.0,0.00022054,3]
[349503929,1737229833158,-500.0,0.00022054,3]
[349503931,1737229833168,-739.98,0.00022054,3]
[349503933,1737229833177,-500.0,0.00022054,3]
[349503935,1737229833186,-500.0,0.00022054,3]
[349503937,1737229833195,-500.0,0.00022054,3]
[349503939,1737229833205,-1983.3,0.00022054,3]
[349503941,1737229833214,-500.0,0.00022054,3]
[349503943,1737229833223,-500.0,0.00022054,3]
[349503945,1737229833232,-500.0,0.00022054,3]
[349503947,1737229833241,-500.0,0.00022054,3]
[349503949,1737229833251,-500.0,0.00022054,3]
[349503951,1737229833260,-376.27393658,0.00022082,2]
[349503953,1737229833269,-500.0,0.00022191,3]
[349503955,1737229833279,-739.98,0.00022191,3]
[349503957,1737229833288,-500.0,0.00022191,3]
[349503959,1737229833297,-500.0,0.00022191,3]
[349503961,1737229833306,-1983.3,0.00022191,3]
[349503962,1737229833315,-500.0,0.00022191,3]
[349503964,1737229833325,-500.0,0.00022191,3]
[349503967,1737229833335,-429.47,0.00022191,3]
[349503968,1737229833345,-500.0,0.00022191,3]
[349503970,1737229833354,-361.439,0.0002232,2]
[349503972,1737229833363,-500.0,0.00022328,3]
[349503974,1737229833373,-739.98,0.00022328,3]
[349503976,1737229833382,-500.0,0.00022328,3]
[349503979,1737229833391,-500.0,0.00022328,3]
[349503981,1737229833401,-1983.3,0.00022328,3]
[349503983,1737229833410,-500.0,0.00022328,3]
[349503985,1737229833419,-466.33,0.00022328,3]
[349503987,1737229833429,-500.0,0.00022465,3]
[349503989,1737229833439,-739.98,0.00022465,3]
[349503991,1737229833448,-233.77009372,0.00022465,3]
[349504002,1737229833551,-100.32408617,0.00022465,3]
[349504004,1737229833564,-165.90582011,0.00022465,3]
[349504006,1737229833575,-413.85,0.00022465,3]
[349504008,1737229833586,-1983.3,0.00022465,3]
[349504010,1737229833601,-500.0,0.00022465,3]
[349504012,1737229833612,-500.0,0.00022589,2]
[349504014,1737229833622,-296.56255591,0.00022589,2]
[349504016,1737229833641,-500.0,0.00022328,3]
[349504019,1737229833653,-203.43744409,0.00022589,2]
[349504021,1737229833663,-296.26922511,0.00022602,3]
[349504295,1737229838229,-500.0,0.00022465,3]
[349504296,1737229838239,-203.73077489,0.00022602,3]
[349504297,1737229838248,-739.98,0.00022602,3]
[349504298,1737229838258,-500.0,0.00022602,3]
[349504299,1737229838267,-1983.3,0.00022602,3]
[349504300,1737229838277,-500.0,0.00022602,3]
[349504301,1737229838287,-379.69345856,0.00022739,3]
[349504302,1737229838296,-739.98,0.00022739,3]
[349504303,1737229838306,-500.0,0.00022739,3]
[349504304,1737229838317,-1983.3,0.00022739,3]
[349504305,1737229838327,-500.0,0.00022739,3]
[349504306,1737229838336,-739.98,0.00022876,3]
[349504307,1737229838347,-500.0,0.00022876,3]
[349504309,1737229838357,-1983.3,0.00022876,3]
[349504310,1737229838367,-500.0,0.00022876,3]
[349504311,1737229838378,-160.88700972,0.00023007,2]
[349504312,1737229838388,-739.98,0.00023013,3]
[349504313,1737229838398,-500.0,0.00023013,3]
[349504314,1737229838408,-1983.3,0.00023013,3]
[349504315,1737229838418,-500.0,0.00023013,3]
[349504316,1737229838427,-9235.15959831,0.00023059,2]
[349504317,1737229838436,-226.65588986,0.00023137,2]
[349504318,1737229838446,-739.98,0.0002315,3]
[349504319,1737229838456,-500.0,0.0002315,3]
[349504320,1737229838467,-1983.3,0.0002315,3]
[349504321,1737229838477,-500.0,0.0002315,3]
[349504322,1737229838487,-178.787,0.00023259,3]
[349504323,1737229838497,-739.98,0.00023287,3]
[349504324,1737229838507,-294.62585212,0.00023287,3]
[349504325,1737229838520,-205.37414788,0.00023287,3]
[349504326,1737229838529,-1794.62585212,0.00023287,3]
[349504330,1737229840221,-500.0,0.00021917,3]
[349504331,1737229840231,-188.67414788,0.00023287,3]
[349504332,1737229840240,-500.0,0.00023287,3]
[349504333,1737229840250,-3694.0793257,0.000234,3]
[349504334,1737229840294,-2978.07962224,0.000234,3]
[349504335,1737229840306,-2503.50761345,0.000234,3]
[349504336,1737229840317,-150.0,0.0002341,2]
[349504337,1737229840326,-895.48491338,0.0002341,2]
[349504338,1737229840337,-1074.71308662,0.0002341,2]
[349504339,1737229840347,-150.0,0.0002341,2]
[349504340,1737229840356,-739.98,0.00023424,3]
[349504341,1737229840366,-500.0,0.00023424,3]
[349504342,1737229840375,-905.30691338,0.00023424,3]
[349504343,1737229840386,-1077.99308662,0.00023424,3]
[349504344,1737229840396,-500.0,0.00023424,3]
[349504345,1737229840405,-500.0,0.00023473,2]
[349504346,1737229840414,-72.60982878,0.00023473,2]
[349504390,1737229846194,-500.0,0.00021917,3]
[349504391,1737229846204,-246.72947002,0.00022054,3]
[349504392,1737229846214,-262.70430223,0.00023473,2]
[349504394,1737229846226,-164.68586899,0.00023473,2]
[349504396,1737229846235,-399.90930406,0.00023499,2]
[349504398,1737229846244,-500.0,0.00023499,2]
[349504400,1737229846253,-500.0,0.00023499,2]
[349504402,1737229846261,-382.07827116,0.00023499,2]
[349504404,1737229846270,-263.99220683,0.00023499,2]
[349504406,1737229846279,-500.0,0.00023499,2]
[349504408,1737229846288,-540.47728778,0.00023499,2]
[349504410,1737229846297,-500.0,0.00023499,2]
[349504411,1737229846306,-500.0,0.00023499,2]
[349504412,1737229846316,-610.43227844,0.00023499,2]
[349504413,1737229846325,-446.5708896,0.00023499,2]
[349504414,1737229846334,-500.0,0.00023499,2]
[349504415,1737229846343,-500.0,0.00023499,2]
[349504416,1737229846354,-429.12575996,0.00023499,2]
[349504417,1737229846363,-619.20902871,0.000235,5]
[349504418,1737229846372,-5415.35710439,0.000235,2]
[349504419,1737229891080,160.0,0.00024999,120]
[349504420,1737229950782,160.0,0.00024605,120]
[349504421,1737230010745,160.0,0.00024818,120]
[349504422,1737230037648,1637.65375964,0.00025,120]
[349504424,1737230070795,160.0,0.00023337,120]
[349504425,1737230122435,2919.93,0.00025,120]
[349504426,1737230130749,160.0,0.00023342,120]
[349504427,1737230135595,2189.95,0.00025,120]
[349504428,1737230149713,1642.46,0.00025,120]
[349504429,1737230167050,1231.85,0.00025,120]
[349504430,1737230170539,193.799301,0.0002411,120]
[349504431,1737230184254,1847.77,0.00025,120]
[349504432,1737230191294,160.0,0.000249,120]
[349504433,1737230201028,1847.77,0.00025,120]
[349504434,1737230250781,160.0,0.00023948,120]
[349504435,1737230310786,160.0,0.00024682,120]
[349504436,1737230347122,160.782761,0.00013973,2]
[349504437,1737230430766,160.0,0.00023059,120]
[349504438,1737230490737,160.0,0.00023983,120]
[349504439,1737230550783,160.0,0.00024163,120]
[349504440,1737230610493,160.0,0.0002286,120]
[349504441,1737230670782,160.0,0.00023156,120]
[349504444,1737230731505,160.0,0.00024982,120]
[349504445,1737230851279,160.0,0.00023664,120]
[349504446,1737230910804,160.0,0.00024562,120]
[349504453,1737230964142,-500.0,0.0001919,2]
[349504454,1737230968103,-159.89239171,0.0002008,2]
[349504455,1737230968124,-500.0,0.0002018,2]
[349504456,1737230968149,-313.056527,0.00020356,2]
[349504457,1737230968171,-816.08445634,0.00020569,2]
[349504459,1737230970735,160.0,0.00023734,120]
[349504461,1737231030809,160.0,0.00023978,120]
[349504516,1737231032495,-400.0,0.0002018,2]
[349504518,1737231032504,-1133.91554366,0.00020363,2]
[349504520,1737231032514,-162.1301035,0.0002045,2]
[349504522,1737231032524,-1133.91554366,0.00020569,2]
[349504524,1737231032533,-187.45,0.00020813,2]
[349504526,1737231032543,-300.0,0.00020822,2]
[349504528,1737231032553,-24900.0,0.00020823,2]
[349504530,1737231032562,-250.0,0.00020858,2]
[349504532,1737231032571,-175.8971041,0.00021546,2]
[349504533,1737231032580,-196.36439138,0.00021816,2]
[349504535,1737231032590,-164.66090688,0.00021816,2]
[349504537,1737231032599,-196.36439137,0.00021817,2]
[349504539,1737231032609,-204.79379084,0.00021817,2]
[349504541,1737231032618,-196.36439137,0.00021817,2]
[349504543,1737231032627,-260.7544872,0.000219,3]
[349504545,1737231032636,-999.80003999,0.00021915,2]
[349504547,1737231032645,-178.221,0.00021916,2]
[349504549,1737231032655,-331.82046674,0.00021916,2]
[349504551,1737231032664,-500.0,0.00021916,2]
[349504553,1737231032673,-461.96257009,0.00021916,2]
[349504555,1737231032682,-500.0,0.00021916,2]
[349504557,1737231032691,-500.0,0.00021916,2]
[349504559,1737231032700,-500.0,0.00021916,2]
[349504561,1737231032710,-500.0,0.00021916,2]
[349504564,1737231032719,-500.0,0.00021916,2]
[349504566,1737231032729,-293.32467426,0.00021916,2]
[349504568,1737231032738,-389.64692756,0.00021916,2]
[349504570,1737231032747,-500.0,0.00021916,2]
[349504572,1737231032756,-500.0,0.00021916,2]
[349504574,1737231032765,-500.0,0.00021916,2]
[349504576,1737231032774,-500.0,0.00021916,2]
[349504578,1737231032783,-500.0,0.00021916,2]
[349504580,1737231032792,-500.0,0.00021916,2]
[349504582,1737231032801,-500.0,0.00021916,2]
[349504584,1737231032810,-500.0,0.00021916,2]
[349504586,1737231032819,-500.0,0.00021916,2]
[349504588,1737231032828,-500.0,0.00021916,2]
[349504590,1737231032837,-500.0,0.00021916,2]
[349504592,1737231032847,-227.36970325,0.00021916,2]
[349504594,1737231032855,-500.0,0.00021916,2]
[349504596,1737231032864,-435.51219836,0.00021916,2]
[349504646,1737231038287,-64.48780164,0.00021916,2]
[349504647,1737231038298,-500.0,0.00021916,2]
[349504648,1737231038309,-500.0,0.00021916,2]
[349504649,1737231038319,-500.0,0.00021916,2]
[349504650,1737231038329,-500.0,0.00021916,2]
[349504651,1737231038338,-25.03219836,0.00021916,2]
[349504652,1737231038359,-268.40137609,0.00021697,2]
[349504653,1737231038368,-474.96780164,0.00021916,2]
[349504656,1737231038378,-500.0,0.00021916,2]
[349504658,1737231038388,-500.0,0.00021916,2]
[349504659,1737231038397,-500.0,0.00021916,2]
[349504660,1737231038406,-500.0,0.00021916,2]
[349504662,1737231038416,-500.0,0.00021916,2]
[349504664,1737231038425,-500.0,0.00021916,2]
[349504666,1737231038434,-500.0,0.00021916,2]
[349504668,1737231038443,-500.0,0.00021916,2]
[349504670,1737231038452,-500.0,0.00021916,2]
[349504672,1737231038462,-500.0,0.00021916,2]
[349504673,1737231038471,-500.0,0.00021916,2]
[349504674,1737231038480,-500.0,0.00021916,2]
[349504675,1737231038489,-500.0,0.00021916,2]
[349504676,1737231038499,-500.0,0.00021916,2]
[349504677,1737231038508,-500.0,0.00021916,2]
[349504678,1737231038517,-500.0,0.00021916,2]
[349504679,1737231038527,-456.34656351,0.00021916,2]
[349504680,1737231038537,-500.0,0.00021916,2]
[349504681,1737231038547,-500.0,0.00021916,2]
[349504682,1737231038557,-309.60451435,0.00021917,5]
[349504683,1737231038567,-500.0,0.00021917,3]
[349504684,1737231038576,-501.78866846,0.00021917,3]
[349504685,1737231038585,-500.0,0.00021917,3]
[349504686,1737231038595,-501.94033345,0.00021917,3]